Workbook

Sheet Calcoli
B4: Input dati
B6: Dati dello studio
B8: Fornitore
B9: Data fattura
B10: Numero fattura
B11: Prot. IVA
B13: Aliquote
B15: Imposta Ires | C15: 0.24
B16: Imposta Irap | C16: 0.039
B18: Calcoli
B20: Importo bene agevolato | D20: 100000
B21: Credito d'imposta bonus Sud | C21: 0.45 | D21: =+D20*C21 -> 45000
B22: Credito d'imposta L. 178/2020 | C22: 0.5 | D22: =+D20*C22 -> 50000
B23: Mancata tassazione Ires | C23: =C22*C15 -> 0.12 | D23: =+D20*C23 -> 12000
B24: Mancata tassazione Irap | C24: =+C22*C16 -> 0.0195 | D24: =+D20*C24 -> 1950
B25: Totale agevolazione | C25: =SUM(C21:C24) -> 1.0895 | D25: =SUM(D21:D24) -> 108950
B27: Eccedenza agevolazione | D27: =+D25-D20 -> 8950
B29: Ricalcolo
B31: =+B20 -> Importo bene agevolato | D31: =+D20 -> 100000
B32: Credito d'imposta bonus Sud | C32: 0.45 | D32: =+D31*C32 -> 45000
B33: Credito d'imposta L. 178/2020 ricalcolato | C33: =+D33/D31 -> 0.4300234558 | D33: 43002.34558
B34: Mancata tassazione Ires | C34: =C33*C15 -> 0.1032056294 | D34: =D33*C15 -> 10320.56294
B35: Mancata tassazione Irap | C35: =+C33*C16 -> 0.01677091478 | D35: =D33*C16 -> 1677.091478
B36: Totale agevolazione | C36: =SUM(C32:C35) -> 1 | D36: =SUM(D32:D35) -> 100000
B37: Riduzione credito d'imposta L. 178/2020 | D37: =+D22-D33 -> 6997.654418
B39: Eccedenza agevolazione | D39: =+D31-D36 -> 0
